bitfinex-derivatives/quotes_SOLF0:USTF0_20241002
["timestamp","ask_amount","ask_price","bid_price","bid_amount"]
[1727859685241,8.3,148.1,148.04,8.3]
[1727859685441,8.3,148.1,148.06,3.3774]
[1727859685841,8.3,148.1,148.05,8.3]
[1727859686042,8.3,148.11,148.06,8.3]
[1727859686949,8.3,148.11,148.04,4.76]
[1727859686950,8.3,148.12,148.07,8.3]
[1727859687135,8.3,148.12,148.09,3.3766]
[1727859687342,8.3,148.11,148.09,3.3766]
[1727859693751,8.3,148.11,148.06,8.3]
[1727859693955,8.3,148.1,148.08,3.3769]
[1727859695457,11.6766,148.1,148.07,3.3771]
[1727859695764,8.3,148.08,148.03,8.3]
[1727859695953,4.76,148.1,148.05,8.3]
[1727859696153,13.06,148.1,148.09,3.3768]
[1727859696364,4.76,148.1,148.09,3.3768]
[1727859699359,0.12502,148.13,148.08,8.3]
[1727859699558,0.12502,148.13,148.07,12.97]
[1727859699758,0.12502,148.13,148.05,12.97]
[1727859700062,3.3762,148.12,148.09,3.3766]
[1727859701569,0.12502,148.13,148.05,12.97]
[1727859701767,3.50102,148.13,148.1,3.3764]
[1727859703166,3.50112,148.13,148.07,3.3771]
[1727859703363,3.50112,148.13,148.06,2.629]
[1727859703665,0.12502,148.13,148.06,2.629]
[1727859704265,3.3761,148.12,148.09,3.3766]
[1727859705065,3.3761,148.12,148.1,3.3765]
[1727859705870,0.12502,148.13,148.06,2.629]
[1727859706074,0.12502,148.13,148.11,3.3762]
[1727859706267,0.12502,148.13,148.06,2.629]
[1727859706575,3.50102,148.13,148.1,3.3764]
[1727859706967,3.50102,148.13,148.06,2.629]
[1727859706968,0.12502,148.13,148.07,12.97]
[1727859707173,0.12502,148.13,148.11,3.3762]
[1727859707768,0.12502,148.13,148.07,12.97]
[1727859707968,0.12502,148.13,148.12,3.3761]
[1727859719679,0.12502,148.13,148.12,11.6761]
[1727859721279,0.12502,148.13,148.1,8.3]
[1727859721479,3.3762,148.12,148.08,4.86]
[1727859721674,3.3762,148.12,148.08,13.16]
[1727859722587,11.80102,148.13,148.1,3.3764]
[1727859724179,11.80102,148.13,148.1,11.6764]
[1727859729485,3.3766,148.1,148.08,11.6769]
[1727859729690,3.3766,148.1,148.06,2.629]
[1727859729986,3.3766,148.1,148.07,8.3]
[1727859730785,3.3766,148.1,148.06,2.629]
[1727859730786,8.3,148.12,148.08,8.3]
[1727859730984,3.3764,148.11,148.08,8.3]
[1727859731392,3.50102,148.13,148.1,3.3764]
[1727859731693,0.12502,148.13,148.1,3.3764]
[1727859731884,0.12502,148.13,148.1,8.3]
[1727859731885,3.3762,148.12,148.1,8.3]
[1727859732085,3.3762,148.12,148.06,2.629]
[1727859732086,8.42502,148.13,148.09,8.3]
[1727859732285,8.3,148.12,148.08,8.3]
[1727859732684,3.3767,148.1,148.08,11.6769]
[1727859734287,0.12502,148.13,148.11,3.3763]
[1727859734490,0.12502,148.13,148.11,11.6763]
[1727859735194,3.50102,148.13,148.11,11.6763]
[1727859736895,0.12502,148.13,148.11,11.6763]
[1727859737784,3.50092,148.13,148.11,11.6763]
[1727859738184,0.12502,148.13,148.11,8.3]
[1727859738390,3.3761,148.12,148.11,8.3]
[1727859740396,3.50102,148.13,148.11,11.6763]
[1727859740691,0.12502,148.13,148.12,8.3]
[1727859740895,0.12502,148.13,148.12,11.6761]
[1727859741098,13.1,148.2,148.12,11.74149476]
[1727859741293,3.3748,148.18,148.16,11.6751]
[1727859741496,13.1,148.2,148.16,8.3]
[1727859741983,3.3747,148.18,148.16,8.3]
[1727859743796,3.3747,148.18,148.16,11.6751]
[1727859745697,4.8,148.2,148.16,8.3]
[1727859745899,3.49962,148.19,148.16,8.3]
[1727859746600,3.3748,148.18,148.16,11.6751]
[1727859746893,0.12502,148.19,148.16,11.6751]
[1727859747094,0.12502,148.19,148.17,8.3]
[1727859747691,0.12502,148.19,148.18,11.6747]
[1727859749502,0.12502,148.19,148.14,3.3755]
[1727859749503,3.3752,148.16,148.14,3.3755]
[1727859749709,8.42502,148.19,148.14,3.3755]
[1727859750206,3.3751,148.17,148.15,3.3754]
[1727859751300,3.3751,148.17,148.14,8.3]
[1727859751301,3.3747,148.18,148.16,3.3751]
[1727859752004,3.3747,148.18,148.14,8.3]
[1727859752301,3.3747,148.18,148.15,3.3753]
[1727859754819,3.3753,148.16,148.13,11.6758]
[1727859755215,3.3753,148.16,148.13,8.3]
[1727859755616,3.3753,148.16,148.14,3.3755]
[1727859758723,3.3753,148.16,148.13,8.3]
[1727859758922,3.3753,148.16,148.13,11.6757]
[1727859761230,3.3753,148.16,148.15,8.3]
[1727859763937,3.375,148.17,148.15,11.6754]
[1727859764226,0.12502,148.19,148.15,8.3]
[1727859765329,3.3752,148.16,148.15,8.3]
[1727859768834,0.12502,148.19,148.15,8.3]
[1727859769035,3.3749,148.18,148.16,3.3752]
[1727859770040,3.375,148.17,148.15,11.6753]
[1727859773138,8.42502,148.19,148.14,8.3]
[1727859773333,3.3754,148.15,148.14,8.3]
[1727859774237,3.3753,148.16,148.14,11.6756]
[1727859777648,3.3749,148.18,148.15,11.6753]
[1727859777839,3.3749,148.18,148.15,8.3]
[1727859778342,3.3749,148.18,148.16,3.3752]
[1727859779546,0.12502,148.19,148.15,8.3]
[1727859779748,3.375,148.17,148.15,11.6753]
[1727859781542,3.3754,148.15,148.13,3.3758]
[1727859781741,8.3,148.16,148.09,1.267]
[1727859781949,8.3,148.15,148.1,8.3]
[1727859782345,8.3,148.14,148.1,8.3]
[1727859782748,3.3763,148.11,148.1,8.3]
[1727859782945,8.3,148.13,148.07,0.12502]
[1727859783248,8.3,148.13,148.08,8.3]
[1727859783652,8.3,148.13,148.07,0.12502]
[1727859783854,8.3,148.11,148.07,8.42502]
[1727859784052,13.08,148.11,148.07,8.42502]
[1727859784345,3.377,148.08,148.07,0.12502]
[1727859784750,3.3769,148.09,148.07,0.12502]
[1727859784952,3.3769,148.09,148.08,8.3]
[1727859785146,13.08,148.11,148.07,8.42502]
[1727859785551,3.377,148.08,148.07,8.42502]
[1727859785753,3.377,148.08,148.07,0.12502]
[1727859787154,11.677,148.08,148.07,0.12502]
[1727859787457,3.3779,148.04,148.02,8.3]
[1727859787643,4.78,148.08,148.02,8.3]
[1727859787854,13.08,148.08,148.02,8.3]
[1727859788049,3.3776,148.06,148.02,8.3]
[1727859788243,13.08,148.08,148.03,8.3]
[1727859788656,3.3779,148.05,148.03,8.3]
[1727859789344,13.08,148.08,148.01,1.45832]
[1727859789345,3.3781,148.04,148.01,1.45832]
[1727859789547,3.3781,148.04,148.01,8.42502]
[1727859790051,3.3781,148.04,148.01,11.80352]
[1727859790850,3.3781,148.04,148.01,8.42502]
[1727859791056,4.78,148.06,148.02,8.3]
[1727859791657,3.3778,148.05,148.03,3.3781]
[1727859791956,4.78,148.08,148.04,8.3]
[1727859792145,1.46372,148.13,148.06,8.3]
[1727859792343,8.3,148.11,148.06,8.3]
[1727859792746,3.3772,148.08,148.06,8.3]
[1727859792943,13.08,148.1,148.06,8.3]
[1727859793461,3.3771,148.08,148.06,11.6774]
[1727859794249,3.3769,148.09,148.06,11.6774]
[1727859794448,13.08,148.1,148.06,8.3]
[1727859794852,13.08,148.1,148.05,8.3]
[1727859795861,13.08,148.1,148.05,11.6777]
[1727859796257,3.3773,148.07,148.05,11.6777]
[1727859796464,3.3773,148.07,148.04,3.3778]
[1727859797051,8.3,148.08,148.03,8.3]
[1727859797252,3.3777,148.05,148.03,8.3]
[1727859797453,8.3,148.06,148.01,0.12502]
[1727859797658,3.3782,148.03,148.01,3.50362]
[1727859798655,13.06,148.04,148.01,0.12502]
[1727859798856,3.3784,148.02,148.01,0.12502]
[1727859802359,4.76,148.04,148.01,0.12502]
[1727859803047,3.3783,148.03,148.01,0.12502]
[1727859803659,3.3783,148.03,148.01,3.50362]
[1727859804851,4.76,148.04,148.01,0.12502]
[1727859805049,3.3784,148.02,148.01,0.12502]
[1727859808857,4.76,148.04,148.01,0.12502]
[1727859809057,4.76,148.04,148.02,3.3784]
[1727859809058,8.138,148.04,148.02,3.3784]
[1727859809267,8.138,148.04,148.01,8.42502]
[1727859809565,4.76,148.04,148.01,0.12502]
[1727859810061,13.06,148.04,148.01,0.12502]
[1727859810265,3.3784,148.02,148.01,0.12502]
[1727859811861,1.3195,148.07,148.01,8.42502]
[1727859812062,4.76,148.06,148.03,8.3]
[1727859812266,4.76,148.06,148.02,11.6783]
[1727859812658,3.3777,148.05,148.02,11.6783]
[1727859813467,3.3775,148.06,148.04,3.3779]
[1727859814268,3.3777,148.05,148.03,11.6781]
[1727859815471,3.3779,148.04,148.02,11.6783]
[1727859815763,13.06,148.07,148.02,11.6783]
[1727859816468,8.3,148.05,148.01,3.50342]
[1727859817069,3.378,148.04,148.01,0.12502]
[1727859817363,3.378,148.04,148.02,3.3784]
[1727859819559,3.378,148.04,148.01,3.50352]
[1727859822158,8.3,148.09,148.03,8.3]
[1727859822871,6.1315,148.11,148.04,3.3778]
[1727859822872,3.3776,148.06,148.04,3.3778]
[1727859823066,8.3,148.07,148.02,8.3]
[1727859823266,13.06,148.07,148.03,8.3]
[1727859823862,16.4374,148.07,148.04,3.3778]
[1727859824267,8.1374,148.07,148.03,8.3]
[1727859824668,4.76,148.07,148.03,8.3]
[1727859824869,3.3775,148.06,148.04,3.3778]
[1727859828966,3.3775,148.06,148.01,0.12502]
[1727859828967,8.3,148.06,148.01,0.12502]
[1727859829168,8.3,148.04,148.01,0.12502]
[1727859830484,3.3783,148.03,148.01,0.12502]
[1727859831272,3.3784,148.02,148.01,0.12502]
[1727859832672,11.6784,148.02,148.01,0.12502]
[1727859833068,8.3,148.02,147.95,88.38760571]
[1727859833267,8.3,147.99,147.95,88.38760571]
[1727859833470,13.12,147.99,147.95,80.08760571]
[1727859833677,3.3797,147.96,147.95,80.08760571]
[1727859833867,8.3,147.98,147.95,0.12502]
[1727859834072,13.12,147.99,147.95,0.12502]
[1727859834374,13.12,147.99,147.95,8.42502]
[1727859834580,13.12,147.99,147.95,0.12502]
[1727859834875,3.3796,147.97,147.95,0.12502]
[1727859836275,3.3796,147.97,147.95,3.50492]
[1727859836475,8.1992,147.99,147.95,8.42502]
[1727859837080,8.1992,147.99,147.96,3.3796]
[1727859837981,3.3793,147.98,147.96,3.3796]
[1727859840783,4.82,147.99,147.96,3.3796]
[1727859841082,3.3793,147.98,147.96,3.3796]
[1727859843576,8.3,148.0,147.96,8.3]
[1727859843781,8.1992,147.99,147.97,3.3795]
[1727859844880,3.3785,148.02,147.96,8.3]
[1727859845181,4.82,148.01,147.98,11.6791]
[1727859845779,3.379,148.0,147.95,0.12502]
[1727859845985,13.12,148.01,147.96,11.6796]
[1727859846386,3.3792,147.99,147.96,11.6796]
[1727859846581,13.12,148.01,147.96,11.6796]
[1727859847892,4.82,148.01,147.97,8.3]
[1727859848189,4.82,148.01,147.95,0.12502]
[1727859848384,3.3792,147.99,147.96,11.6796]
[1727859848587,8.3,148.0,147.96,11.6796]
[1727859848786,3.3793,147.99,147.96,11.6796]
[1727859849084,8.3,148.0,147.96,11.6796]
[1727859849588,8.3,147.99,147.96,3.3796]
[1727859849790,3.3794,147.98,147.96,3.3796]
[1727859849994,8.3,147.98,147.95,3.50492]
[1727859851293,3.3796,147.97,147.95,3.50492]
[1727859851888,11.6795,147.98,147.95,3.50492]
[1727859853890,3.3795,147.98,147.95,3.50492]
[1727859854191,3.3795,147.98,147.96,3.3797]
[1727859856482,3.3795,147.98,147.95,11.80482]
[1727859856991,3.3795,147.98,147.95,8.42502]
[1727859857186,3.3785,148.02,147.97,8.3]
[1727859857488,4.78,148.02,147.97,8.3]
[1727859857688,3.3793,147.99,147.96,11.6796]
[1727859857999,8.3,147.98,147.95,0.12502]
[1727859858795,3.3795,147.97,147.95,0.12502]
[1727859859795,11.6795,147.97,147.95,0.12502]
[1727859860588,3.3795,147.97,147.95,0.12502]
[1727859862498,8.3,147.98,147.95,0.12502]
[1727859862796,3.3797,147.96,147.95,0.12502]
[1727859869395,11.6797,147.96,147.95,0.12502]
[1727859870802,16.4597,147.96,147.95,0.12502]
[1727859873003,3.3797,147.96,147.95,0.12502]
[1727859873198,11.6797,147.96,147.95,0.12502]
[1727859876098,3.3811,147.9,147.89,0.12502]
[1727859878300,3.381,147.91,147.89,0.12502]
[1727859883599,3.381,147.91,147.89,3.50632]
[1727859883905,4.78,147.94,147.9,8.3]
[1727859884503,3.3806,147.93,147.9,8.3]
[1727859884805,4.78,147.94,147.89,0.12502]
[1727859885006,4.78,147.94,147.89,8.42502]
[1727859885206,10.17777481,147.98,147.91,8.3]
[1727859885510,13.08,147.97,147.91,8.3]
[1727859885707,3.3804,147.94,147.92,3.3806]
[1727859886003,4.86,147.95,147.91,8.3]
[1727859886204,3.3803,147.94,147.92,3.3805]
[1727859886405,4.86,147.95,147.93,8.3]
[1727859887111,8.2402,147.95,147.93,8.3]
[1727859887901,8.2402,147.95,147.93,11.6804]
[1727859888099,3.3802,147.95,147.93,11.6804]
[1727859889105,4.86,147.96,147.93,8.3]
[1727859889311,4.86,147.96,147.94,3.3802]
[1727859889312,8.2398,147.96,147.94,3.3802]
[1727859890508,8.2398,147.96,147.93,11.6803]
[1727859891213,8.2398,147.96,147.94,11.6801]
[1727859891605,4.86,147.96,147.94,8.3]
[1727859891807,8.2398,147.96,147.94,11.6801]
[1727859892108,3.3798,147.96,147.94,11.6801]
[1727859892301,3.3798,147.96,147.94,8.3]
[1727859893724,3.3798,147.96,147.93,3.3804]
[1727859893918,3.3801,147.95,147.92,11.6805]
[1727859894422,3.3801,147.95,147.92,8.3]
[1727859895022,13.16,147.97,147.9,1.2963]
[1727859895221,13.16,147.97,147.92,8.3]
[1727859895618,13.16,147.97,147.92,11.6805]
[1727859895814,3.3801,147.95,147.92,11.6805]
[1727859897727,3.3801,147.95,147.92,8.3]
[1727859897930,3.3801,147.95,147.93,3.3804]
[1727859898429,13.16,147.97,147.9,1.2963]
[1727859898727,3.3802,147.94,147.93,8.3]
[1727859908623,4.86,147.97,147.93,8.3]
[1727859908827,3.38,147.95,147.93,11.6803]
[1727859909022,4.86,147.97,147.93,8.3]
[1727859909628,13.16,147.97,147.92,8.3]
[1727859909824,3.3803,147.94,147.92,11.6806]
[1727859913929,4.86,147.96,147.93,8.3]
[1727859914133,2.577,147.99,147.9,1.2963]
[1727859914134,1.2623,147.99,147.95,8.3]
[1727859914436,0.12502,148.01,147.98,8.3]
[1727859914642,4.86,148.0,147.98,8.3]
[1727859915321,3.3793,147.99,147.98,8.3]
[1727859915533,0.12502,148.01,147.98,8.3]
[1727859915740,0.12502,148.01,147.99,11.6789]
[1727859915931,0.12502,148.01,147.99,8.3]
[1727859916635,3.50372,148.01,147.99,8.3]
[1727859916929,0.12502,148.01,148.0,8.3]
[1727859917136,4.90502,148.07,148.0,8.3]
[1727859917330,0.12502,148.07,148.06,8.3]
[1727859917936,0.12502,148.07,148.06,11.6775]
[1727859918527,0.12502,148.07,148.06,3.3775]
[1727859918831,3.3775,148.06,148.05,8.3]
[1727859919032,3.3775,148.06,148.03,8.3]
[1727859919833,0.12502,148.07,148.02,1.3232]
[1727859920031,8.42502,148.07,148.02,9.6232]
[1727859920232,8.42502,148.07,148.02,8.3]
[1727859920438,3.3779,148.05,148.02,8.3]
[1727859921237,3.3779,148.05,148.03,8.3]
[1727859921432,4.90502,148.07,148.04,8.3]
[1727859921730,4.90502,148.07,148.01,4.78]
[1727859921731,0.12502,148.07,148.05,8.3]
[1727859921931,0.12502,148.07,148.06,8.3]
[1727859922645,0.12502,148.07,148.06,11.6775]
[1727859923532,0.12502,148.07,148.05,8.3]
[1727859923835,0.12502,148.07,148.06,8.3]
[1727859924836,3.50222,148.07,148.06,8.3]
[1727859925338,0.12502,148.07,148.03,8.1581]
[1727859925641,0.12502,148.07,148.06,8.3]
[1727859926436,0.12502,148.07,148.06,11.6775]
[1727859929138,3.50102,148.13,148.06,13.08]
[1727859929340,0.12502,148.13,148.12,8.3]
[1727859930839,0.12502,148.13,148.12,11.6761]
[1727859932239,0.12502,148.13,148.12,8.3]
[1727859932445,0.12502,148.13,148.11,8.3]
[1727859933041,3.3761,148.12,148.11,8.3]
[1727859934741,3.50102,148.13,148.11,8.3]
[1727859936150,3.3761,148.12,148.11,8.3]
[1727859937449,3.50102,148.13,148.11,8.3]
[1727859937650,0.12502,148.13,148.12,8.3]
[1727859938945,0.12502,148.13,148.12,11.6761]
[1727859941441,0.12502,148.13,148.08,1.3268]
[1727859941644,0.12502,148.13,148.12,8.3]
[1727859943350,3.50092,148.13,148.12,8.3]
[1727859944252,0.12502,148.13,148.12,8.3]
[1727859946352,3.50092,148.13,148.12,8.3]
[1727859948145,0.12502,148.13,148.12,11.6761]
[1727859949161,0.12502,148.13,148.11,3.3763]
[1727859949347,0.12502,148.13,148.12,8.3]
[1727859950560,0.12502,148.13,148.09,1.3328]
[1727859950757,3.3761,148.12,148.1,3.3764]
[1727859950959,3.3761,148.12,148.11,8.3]
[1727859954259,0.12502,148.13,148.07,3.3771]
[1727859954460,8.42502,148.13,148.09,8.3]
[1727859954857,3.3768,148.09,148.06,83.27892679]
[1727859955052,3.3768,148.09,148.08,8.3]
[1727859962774,3.377,148.08,148.07,8.3]
[1727859962969,8.3,148.1,148.04,3.3778]
[1727859963266,3.3776,148.06,148.03,8.3]
[1727859963575,3.3776,148.06,148.03,11.678]
[1727859964364,3.3776,148.06,148.04,3.3779]
[1727859965171,3.3777,148.05,148.03,8.3]
[1727859967570,8.3,148.07,148.01,3.50352]
[1727859967775,8.3,148.06,148.01,0.12502]
[1727859968075,4.8,148.05,148.01,0.12502]
[1727859968273,3.3784,148.02,148.01,0.12502]
[1727859969168,4.8,148.05,148.01,8.42502]
[1727859969367,3.378,148.04,148.02,3.3784]
[1727859970369,3.378,148.04,148.01,11.80352]
[1727859970773,3.3783,148.03,148.01,8.42502]
[1727859971671,3.3784,148.02,148.01,0.12502]
[1727859975678,8.1384,148.02,148.01,0.12502]
[1727859993179,16.4384,148.02,148.01,0.12502]
[1727859993585,3.3796,147.97,147.95,0.12502]
[1727859993887,8.3,147.98,147.95,0.12502]
[1727859994204,3.3797,147.96,147.95,0.12502]
[1727859994588,8.3,147.98,147.95,0.12502]
[1727859994794,3.3796,147.97,147.95,0.12502]
[1727859996494,3.3797,147.96,147.95,0.12502]
[1727859998198,16.4597,147.96,147.95,0.12502]
[1727860000389,19.89648718,147.96,147.95,0.12502]
[1727860002791,16.51678718,147.96,147.91,158.20940543]
[1727860002994,3.3808,147.92,147.89,11.80622]
[1727860008802,13.08,147.93,147.89,11.80622]
[1727860009302,3.3807,147.92,147.89,11.80622]
[1727860012102,3.3807,147.92,147.89,3.50622]
[1727860013109,8.3,147.91,147.89,0.12502]
[1727860013397,16.4411,147.9,147.89,0.12502]
[1727860014401,8.1411,147.9,147.89,0.12502]
[1727860015307,4.76,147.9,147.89,0.12502]
[1727860015506,4.76,147.92,147.89,0.12502]
[1727860015804,4.76,147.92,147.89,8.42502]
[1727860016008,8.1408,147.92,147.89,11.80622]
[1727860016795,3.3808,147.92,147.89,11.80622]
[1727860017003,8.1408,147.92,147.89,11.80622]
[1727860017194,2.7256,147.95,147.89,11.80622]
[1727860017195,1.3739,147.95,147.91,8.3]
[1727860017499,4.76,147.94,147.91,8.3]
[1727860017906,8.1403,147.94,147.91,11.6807]
[1727860018408,4.76,147.94,147.91,11.6807]
[1727860018708,13.06,147.94,147.91,3.3807]
[1727860019307,3.3804,147.93,147.91,3.3807]
[1727860019804,13.06,147.94,147.91,3.3807]
[1727860020008,11.6801,147.95,147.92,3.3805]
[1727860020206,4.76,147.94,147.92,3.3805]
[1727860020399,8.1402,147.94,147.92,3.3805]
[1727860020599,8.1402,147.94,147.9,8.3]
[1727860020903,8.1402,147.94,147.91,3.3808]
[1727860022911,8.1402,147.94,147.92,3.3806]
[1727860024514,4.76,147.94,147.92,3.3806]
[1727860025112,8.1398,147.96,147.93,3.3803]
[1727860025915,4.76,147.96,147.91,8.3]
[1727860026311,8.3,147.92,147.89,0.12502]
[1727860026620,4.76,147.91,147.89,0.12502]
[1727860026922,4.76,147.9,147.89,0.12502]
[1727860027216,8.1411,147.9,147.89,0.12502]
[1727860028116,16.4411,147.9,147.89,0.12502]
[1727860029814,3.3811,147.9,147.89,0.12502]
[1727860030010,16.4411,147.9,147.89,0.12502]
[1727860033525,8.1411,147.9,147.89,0.12502]
[1727860033824,16.4411,147.9,147.89,0.12502]
[1727860042730,13.06,147.9,147.83,0.12502]
[1727860042928,8.3,147.86,147.83,0.12502]
[1727860043124,13.06,147.86,147.83,3.50772]
[1727860043431,9.6832,147.86,147.83,3.50772]
[1727860043633,6.301,147.86,147.83,0.12502]
[1727860044327,2.9243,147.86,147.83,0.12502]
[1727860044530,8.3,147.85,147.83,0.12502]
[1727860044935,4.9235,147.85,147.83,0.12502]
[1727860045734,4.76,147.84,147.83,0.12502]
[1727860046225,8.1425,147.84,147.83,0.12502]
[1727860046536,4.76,147.84,147.83,0.12502]
[1727860047734,8.1425,147.84,147.83,0.12502]
[1727860049935,8.1425,147.84,147.53,0.12502]
[1727860049936,20.28,147.81,147.53,0.12502]
[1727860050237,20.28,147.81,147.64,8.3]
[1727860050238,9.55006823,147.8,147.64,8.3]
[1727860050430,8.3,147.71,147.6,3.967]
[1727860050737,8.3,147.71,147.65,8.42502]
[1727860050936,4.78305009,147.7,147.65,8.42502]
[1727860051142,8.3,147.71,147.65,8.42502]
[1727860051331,4.76,147.73,147.66,8.3]
[1727860051537,8.3,147.71,147.66,8.3]
[1727860052232,8.3,147.71,147.65,8.42502]
[1727860052841,3.3859,147.7,147.65,8.42502]
[1727860053034,8.3,147.68,147.65,0.12502]
[1727860053341,4.76,147.73,147.65,8.42502]
[1727860053637,8.3,147.7,147.65,8.42502]
[1727860053833,8.3,147.69,147.65,0.12502]
[1727860054336,3.3857,147.7,147.65,0.12502]
[1727860054534,8.3,147.69,147.65,0.12502]
[1727860055142,4.76,147.73,147.65,8.42502]
[1727860055445,8.3,147.71,147.65,8.42502]
[1727860055641,4.76,147.73,147.66,3.3866]
[1727860055642,8.3,147.7,147.66,3.3866]
[1727860056442,8.3,147.7,147.67,3.3863]
[1727860056745,8.3,147.71,147.67,3.3863]
[1727860057338,8.3,147.71,147.67,8.1663]
[1727860060446,8.3,147.71,147.68,3.3862]
[1727860060940,4.76,147.73,147.67,14.375]
[1727860061148,8.3,147.72,147.67,6.075]
[1727860061345,8.3,147.72,147.67,14.375]
[1727860062352,11.6853,147.72,147.68,3.3861]
[1727860065460,3.3855,147.71,147.68,3.3861]
[1727860067250,8.3,147.7,147.67,1.295]
[1727860067552,11.6858,147.7,147.67,9.7013]
[1727860067755,8.3,147.72,147.67,14.615]
[1727860067953,3.3855,147.71,147.67,9.595]
[1727860068151,3.3855,147.71,147.68,5.02]
[1727860068650,8.3,147.72,147.67,9.595]
[1727860068955,8.3,147.7,147.67,6.315]
[1727860069355,11.6858,147.7,147.67,9.7012]
[1727860069649,11.6858,147.7,147.67,6.315]
[1727860069854,11.6855,147.71,147.68,3.3861]
[1727860085359,8.3,147.7,147.67,6.315]
[1727860085959,8.3,147.7,147.66,2.5721]
[1727860086160,8.3,147.68,147.65,0.12502]
[1727860086467,11.6863,147.68,147.65,3.51172]
[1727860086672,8.3,147.68,147.65,3.51172]
[1727860086966,8.3,147.68,147.65,0.12502]
[1727860087164,8.3,147.68,147.66,3.3866]
[1727860087363,8.3,147.68,147.65,0.12502]
[1727860087566,11.6864,147.68,147.65,0.12502]
[1727860088364,11.6864,147.68,147.65,3.51172]
[1727860089275,11.6864,147.67,147.65,0.12502]
[1727860091561,8.3,147.67,147.65,3.51182]
[1727860092663,8.3,147.67,147.65,0.12502]
[1727860093166,11.6865,147.67,147.65,0.12502]
[1727860093965,8.3,147.67,147.65,0.12502]
[1727860094274,11.6864,147.67,147.65,0.12502]
[1727860096761,3.3866,147.66,147.65,0.12502]
[1727860097267,8.3,147.67,147.65,3.51182]
[1727860098469,11.6865,147.67,147.65,0.12502]
[1727860099476,11.6866,147.66,147.65,0.12502]
[1727860101569,8.3,147.66,147.65,0.12502]
[1727860101872,8.3,147.67,147.65,0.12502]
[1727860102068,4.9,147.68,147.65,0.12502]
[1727860102069,8.3,147.66,147.65,0.12502]
[1727860102673,11.6866,147.66,147.65,0.12502]
[1727860103968,8.3,147.66,147.65,0.12502]
[1727860106380,11.6866,147.66,147.65,0.12502]
[1727860107282,3.3869,147.65,147.63,3.3872]
[1727860107479,8.3,147.65,147.59,8.42502]
[1727860107675,3.45956553,147.67,147.59,8.42502]
[1727860107978,8.3,147.64,147.59,8.42502]
[1727860108176,8.3,147.64,147.59,0.12502]
[1727860108777,11.6873,147.64,147.6,3.3879]
[1727860108981,11.6873,147.64,147.59,0.12502]
[1727860109379,11.6873,147.64,147.61,3.3876]
[1727860111285,8.3,147.63,147.6,3.3879]
[1727860111479,8.3,147.63,147.59,0.12502]
[1727860112185,3.3873,147.64,147.59,0.12502]
[1727860112384,4.92,147.65,147.59,8.42502]
[1727860112683,8.3,147.64,147.63,3.3873]